bitfinex/quotes_ETHUSD_20250114
["timestamp","ask_amount","ask_price","bid_price","bid_amount"]
[1736871370431,0.7807,3189.0,3188.6,3.13613]
[1736871370630,0.7807,3189.0,3187.9,3.0]
[1736871370828,0.7807,3189.0,3188.2,3.0]
[1736871371046,0.7807,3189.0,3187.7,0.7713]
[1736871371229,0.7807,3189.2,3187.6,3.62324493]
[1736871371432,0.7807,3189.0,3187.6,0.62324493]
[1736871371674,0.7807,3189.0,3188.1,6.13658]
[1736871371830,0.7807,3189.0,3188.1,3.99915185]
[1736871372032,0.7807,3189.0,3188.3,3.13639]
[1736871372442,0.7807,3189.0,3187.8,6.99915185]
[1736871372776,0.7807,3188.6,3187.6,0.23238427]
[1736871373142,0.7807,3188.6,3187.7,3.13702]
[1736871373669,0.7807,3188.4,3187.3,3.0]
[1736871373975,0.7807,3188.2,3187.2,3.13746]
[1736871374181,0.0392129,3188.1,3187.2,3.13746]
[1736871374376,0.7807,3188.0,3186.9,3.99915185]
[1736871374678,0.7807,3188.0,3187.1,3.13756]
[1736871374892,0.7807,3188.0,3187.0,3.0]
[1736871375039,1.172429,3188.0,3187.1,3.0]
[1736871375435,3.13708,3187.7,3186.6,3.1381]
[1736871375676,0.7585,3187.6,3186.9,3.13776]
[1736871375902,0.7585,3187.6,3187.0,3.13766]
[1736871376045,0.7585,3188.0,3187.3,3.99915185]
[1736871376244,0.7585,3188.0,3187.4,3.13735]
[1736871376436,0.7585,3188.0,3187.5,3.13721]
[1736871378337,0.7585,3188.0,3187.4,3.0]
[1736871378677,0.7585,3188.0,3187.3,3.13745]
[1736871380384,4.32401882,3188.0,3186.9,3.76228362]
[1736871380541,3.93451182,3188.0,3186.9,3.76228362]
[1736871380742,3.8953,3188.0,3187.0,3.13769]
[1736871381740,0.7585,3188.0,3187.0,3.99915185]
[1736871381948,0.7585,3188.0,3187.3,3.99915185]
[1736871382141,0.7585,3188.0,3187.5,3.13723]
[1736871382379,0.7585,3188.0,3187.7,3.13701]
[1736871382554,0.7585,3188.8,3187.8,3.13688]
[1736871382752,3.89466,3188.7,3187.7,6.13701]
[1736871382984,3.89466,3188.7,3187.8,3.1369]
[1736871383662,0.7585,3188.7,3188.2,3.13655]
[1736871383856,0.7585,3188.7,3188.3,3.1364]
[1736871384060,0.7585,3188.7,3188.0,3.0]
[1736871384264,0.7585,3189.7,3188.6,3.13609]
[1736871384447,0.7585,3189.5,3188.6,3.13609]
[1736871384655,3.13551,3189.3,3188.4,3.13633]
[1736871384861,0.7585,3189.2,3188.0,3.7787]
[1736871385047,0.7585,3189.2,3188.0,3.0]
[1736871385242,0.7585,3189.2,3188.4,3.0]
[1736871385548,3.13592,3188.9,3188.0,3.0]
[1736871385860,0.79770368,3188.8,3187.3,7.13653185]
[1736871386076,0.7585,3188.6,3187.9,3.0]
[1736871386386,0.7585,3188.6,3187.9,3.13685]
[1736871386587,0.7585,3188.6,3187.7,3.0]
[1736871386785,0.7585,3188.6,3188.2,3.13647]
[1736871386959,0.7585,3188.6,3187.6,7.62948778]
[1736871387370,0.7585,3188.6,3188.2,3.0]
[1736871387598,0.7585,3188.6,3188.0,6.13676]
[1736871387599,0.7585,3188.6,3188.1,3.0]
[1736871387808,0.7585,3188.6,3188.3,3.13637]
[1736871388010,0.7585,3188.6,3188.1,3.0]
[1736871388501,0.7585,3188.6,3188.3,3.13643]
[1736871388705,0.7585,3188.6,3188.1,3.0]
[1736871388877,0.7585,3188.6,3188.2,3.37025742]
[1736871389406,0.7585,3188.6,3188.3,3.13645]
[1736871389968,0.7585,3188.6,3188.3,3.37016742]
[1736871390601,0.7585,3189.5,3188.3,3.37016742]
[1736871390802,0.389372,3189.4,3188.3,0.23371742]
[1736871391015,0.7585,3189.5,3188.6,3.0]
[1736871391309,0.7585,3189.5,3188.4,0.23371742]
[1736871391310,0.03919439,3189.4,3188.4,0.23371742]
[1736871391484,0.7585,3189.5,3188.5,3.13626]
[1736871391670,3.13543,3189.4,3188.6,3.0]
[1736871392205,0.7585,3189.5,3188.6,3.13615]
[1736871392409,0.7585,3189.5,3188.4,0.23371742]
[1736871392410,0.389371,3189.4,3188.7,3.13605]
[1736871392614,0.7585,3189.5,3188.7,3.13605]
[1736871392615,0.7585,3189.5,3188.7,0.23371742]
[1736871392763,0.7585,3189.5,3189.1,3.13568]
[1736871393189,0.03919023,3189.4,3188.7,0.23371742]
[1736871393406,0.761,3189.3,3188.7,0.23371742]
[1736871393629,3.89655,3189.3,3188.4,3.13628]
[1736871393835,0.42885289,3189.2,3188.4,3.13628]
[1736871394037,3.89668,3189.1,3188.3,3.0]
[1736871394329,0.761,3189.1,3188.3,6.13642]
[1736871394941,0.761,3189.1,3188.4,0.23454448]
[1736871396121,0.761,3189.1,3188.5,0.23454448]
[1736871396351,0.761,3189.1,3188.8,3.13595]
[1736871396536,0.761,3189.1,3188.6,3.0]
[1736871396753,0.761,3189.1,3188.8,3.13588]
[1736871396923,0.761,3189.1,3188.6,3.0]
[1736871397123,0.761,3190.0,3188.8,3.29601207]
[1736871397361,0.761,3190.0,3189.2,3.13558]
[1736871397664,0.64127009,3190.7,3189.9,3.13481]
[1736871397868,3.35354,3191.3,3189.8,3.29601207]
[1736871397869,0.761,3190.6,3190.1,3.13467]
[1736871398570,0.761,3190.6,3190.2,3.0]
[1736871398876,3.89459,3191.3,3190.4,3.13437]
[1736871399158,4.284049,3191.3,3190.4,3.13437]
[1736871399364,1.150459,3191.3,3190.5,3.13428]
[1736871399568,1.150459,3191.3,3190.6,3.13418]
[1736871399718,0.761,3191.3,3190.6,3.0]
[1736871400161,0.761,3191.3,3190.5,0.23454448]
[1736871400536,0.761,3191.3,3190.8,3.13391]
[1736871400721,0.761,3191.3,3190.7,3.0]
[1736871400921,0.761,3191.3,3191.0,3.13381]
[1736871401148,0.761,3191.7,3190.9,3.0]
[1736871401387,0.761,3191.7,3191.2,3.13359]
[1736871401744,0.761,3191.7,3191.0,3.96208]
[1736871402058,0.761,3192.4,3191.6,3.1332]
[1736871402285,0.761,3192.4,3191.7,3.13306]
[1736871402485,0.761,3192.4,3191.8,3.0]
[1736871402696,0.761,3192.4,3191.9,3.13283]
[1736871403061,0.761,3192.4,3191.8,3.0]
[1736871403996,0.761,3192.4,3191.8,6.13301]
[1736871404684,0.761,3192.4,3191.9,3.13285]
[1736871404889,0.761,3192.8,3191.8,3.0]
[1736871405105,0.761,3192.8,3192.1,3.0]
[1736871405402,0.761,3192.8,3192.1,6.13272]
[1736871405913,0.761,3192.8,3192.1,3.0]
[1736871406202,0.761,3192.8,3192.3,3.13245]
[1736871407408,0.761,3192.8,3192.1,6.13264]
[1736871407560,0.761,3192.8,3192.3,3.13252]
[1736871408777,0.761,3192.8,3192.5,3.0]
[1736871409176,0.761,3192.8,3192.3,3.13248]
[1736871409414,0.761,3192.8,3192.1,3.7755]
[1736871409592,0.761,3192.8,3192.0,3.98875088]
[1736871409803,0.761,3192.8,3192.4,3.0]
[1736871410110,0.761,3192.8,3192.5,3.13234]
[1736871410314,3.93656,3193.5,3192.5,3.13234]
[1736871410493,3.13146,3193.4,3192.4,3.0]
[1736871411301,0.8052,3193.3,3192.4,3.0]
[1736871411573,0.8052,3193.3,3192.5,3.13232]
[1736871412195,0.8052,3193.3,3192.6,3.13218]
[1736871412409,0.8052,3193.3,3192.4,3.0]
[1736871412596,3.13183,3193.1,3192.1,3.0]
[1736871412801,0.8052,3193.3,3192.1,3.0]
[1736871413022,3.13167,3193.2,3192.2,3.13263]
[1736871413522,1.2027772,3193.3,3192.2,3.13263]
[1736871413707,0.8052,3193.3,3192.4,3.0]
[1736871414388,3.13166,3193.2,3192.1,6.1327]
[1736871414591,0.8052,3193.3,3192.1,3.0]
[1736871414796,0.8052,3193.3,3192.4,3.0]
[1736871415238,0.8052,3193.3,3192.1,1.254614]
[1736871415239,0.8052,3193.3,3192.5,3.13225]
[1736871415644,0.8052,3193.3,3192.8,3.132]
[1736871415799,0.8052,3193.3,3192.9,3.13194]
[1736871416337,3.13086,3194.1,3193.0,3.13176]
[1736871416501,3.93614,3194.0,3193.0,3.13176]
[1736871416696,0.8052,3193.9,3192.4,3.7755]
[1736871416895,0.8052,3193.3,3192.4,6.13242]
[1736871417100,0.8052,3193.3,3192.5,3.13233]
[1736871417298,0.8052,3193.3,3192.6,3.0]
[1736871417501,0.8052,3193.3,3192.1,4.254614]
[1736871417806,0.8052,3193.3,3192.5,3.13226]
[1736871418135,0.8052,3193.3,3192.6,3.0]
[1736871418632,0.7052,3193.3,3192.6,3.13223]
[1736871419039,0.7052,3193.3,3192.4,3.0]
[1736871419234,0.7052,3193.3,3192.6,3.98875088]
[1736871419533,0.7052,3193.3,3192.9,3.0]
[1736871419739,0.7052,3193.3,3192.9,3.13192]
[1736871420139,0.7052,3193.3,3192.5,3.1323]
[1736871420308,0.7052,3193.3,3192.6,3.13222]
[1736871420713,0.7052,3193.3,3192.4,6.13241]
[1736871420714,3.83675,3193.3,3192.4,6.13241]
[1736871421079,0.7052,3193.3,3192.6,3.98875088]
[1736871421344,0.7052,3193.3,3192.8,3.13197]
[1736871421841,0.7052,3193.3,3192.6,3.98875088]
[1736871422003,0.7052,3193.3,3193.0,3.13184]
[1736871422350,0.7052,3193.3,3192.8,3.13203]
[1736871422649,0.7052,3193.3,3192.6,3.98875088]
[1736871422800,0.7052,3193.3,3192.7,3.0]
[1736871423224,0.7052,3193.3,3192.7,6.13213]
[1736871423611,3.13126,3193.6,3193.0,3.28695102]
[1736871423612,0.8208,3193.6,3193.0,3.28695102]
[1736871423944,0.8208,3193.6,3193.4,3.13145]
[1736871424114,0.8208,3194.6,3193.5,3.13136]
[1736871424440,0.8208,3194.3,3193.3,6.41847102]
[1736871424738,3.13067,3194.2,3193.3,6.41847102]
[1736871424904,0.8208,3194.0,3193.3,3.28695102]
[1736871425723,0.8208,3194.0,3193.3,6.41849102]
[1736871425950,0.8208,3194.0,3193.4,3.13143]
[1736871426268,0.81703086,3194.0,3193.4,3.13143]
[1736871426549,0.81703086,3194.0,3193.6,3.28695102]
[1736871426920,0.81703086,3194.0,3193.6,6.41820102]
[1736871427359,0.81703086,3194.0,3193.5,0.23293224]
[1736871427566,3.94791086,3194.0,3193.5,0.23293224]
[1736871427872,3.94790086,3194.0,3193.5,0.23293224]
[1736871428239,3.13107,3193.8,3193.5,0.23293224]
[1736871428477,0.03914113,3193.8,3193.5,0.23293224]
[1736871428636,3.13104,3193.9,3193.5,0.23293224]
[1736871428980,0.03914113,3194.1,3193.5,0.23293224]
[1736871428981,3.13107,3193.8,3193.5,0.23293224]
[1736871429272,0.03914113,3194.1,3193.5,0.23293224]
[1736871429273,0.8208,3193.7,3193.5,0.23293224]
[1736871430178,0.8208,3193.7,3193.4,3.0]
[1736871430376,0.8208,3194.1,3193.4,3.0]
[1736871430741,0.85021356,3194.1,3193.6,6.41819102]
[1736871430934,0.8208,3194.1,3193.6,6.41819102]
[1736871431435,0.8208,3194.1,3193.7,3.13115]
[1736871431635,0.8208,3194.9,3193.8,3.13104]
[1736871431858,3.13012,3194.8,3193.8,7.11167955]
[1736871432538,3.13012,3194.8,3193.9,3.13093]
[1736871432880,3.13012,3194.8,3194.0,3.0]
[1736871433435,3.13018,3194.7,3194.0,3.0]
[1736871433876,3.1303,3194.6,3193.9,0.23402255]
[1736871434038,3.1303,3194.6,3194.1,0.23402255]
[1736871434368,0.8208,3194.7,3194.1,0.23402255]
[1736871434784,3.95107,3194.7,3194.1,0.23402255]
[1736871434984,0.02758423,3194.6,3194.1,0.23402255]
[1736871435382,3.55580965,3194.6,3194.1,0.23402255]
[1736871435692,3.15794423,3194.6,3194.2,0.23402255]
[1736871436046,0.02758423,3194.6,3194.2,0.23402255]
[1736871436244,0.8332,3194.3,3194.2,0.23402255]
[1736871436683,0.86102091,3194.3,3193.6,3.0]
[1736871437283,0.8332,3194.3,3193.6,3.0]
[1736871437463,0.02789492,3194.2,3193.6,3.0]
[1736871437665,0.02789492,3194.2,3193.6,6.13124]
[1736871437846,0.02789492,3194.2,3193.2,4.59990099]
[1736871438047,3.13084,3194.1,3193.2,0.61926144]
[1736871438243,0.0280256,3194.1,3193.6,3.0]
[1736871438443,0.0280256,3194.1,3193.8,3.98063955]
[1736871438774,0.7547,3194.9,3194.0,3.13087]
[1736871439294,0.7547,3194.9,3193.8,3.98063955]
[1736871439295,3.15800229,3194.8,3193.9,3.13096]
[1736871439790,3.15800229,3194.8,3194.1,0.23399205]
[1736871440687,0.02791229,3194.8,3194.1,0.23399205]
[1736871440887,0.02791229,3194.8,3194.1,3.36475205]
[1736871441185,0.02791229,3194.8,3194.2,0.23399205]
[1736871442048,0.02791229,3194.8,3194.3,3.13049]
[1736871442247,0.02791229,3194.8,3194.4,3.13045]
[1736871442490,0.02791229,3194.8,3194.5,3.0]
[1736871442660,0.02791229,3194.8,3194.2,0.23399205]
[1736871442862,0.02791229,3194.8,3194.4,0.23399205]
[1736871443469,0.02791229,3194.8,3194.6,3.13022]
[1736871443684,0.02791229,3194.8,3194.4,7.3450416]
[1736871443855,0.1675531,3195.1,3194.4,0.23399205]
[1736871443856,0.7547,3194.9,3194.4,0.23399205]
[1736871444295,0.06681456,3194.8,3194.4,0.23399205]
[1736871444463,3.13019,3194.7,3194.4,0.23399205]
[1736871444666,0.0279984,3194.7,3194.5,0.23399205]
[1736871444977,0.7547,3194.9,3194.5,3.36429205]
[1736871444978,0.02767343,3194.6,3194.5,3.36429205]
[1736871445179,0.7547,3194.9,3194.5,3.36429205]
[1736871445496,0.02750692,3194.8,3194.5,0.23399205]
[1736871445700,0.7547,3194.9,3194.5,0.23399205]
[1736871445897,0.7547,3194.9,3194.6,0.23399205]
[1736871446170,3.13018,3194.7,3194.6,0.23399205]
[1736871446618,3.15784665,3194.7,3194.6,0.23399205]
[1736871446820,0.02766665,3194.7,3194.6,0.23399205]
[1736871447182,0.7547,3194.9,3194.6,0.23399205]
[1736871447490,0.02765522,3194.8,3194.2,3.13058]
[1736871447693,0.7547,3194.9,3194.1,3.98063955]
[1736871447904,0.7547,3194.9,3194.1,3.13072]
[1736871448111,0.7547,3194.9,3194.0,0.23399205]
[1736871448309,0.02745677,3194.8,3194.0,3.36480205]
[1736871448809,3.15755677,3194.8,3194.0,0.23399205]
[1736871448980,3.15755677,3194.8,3194.1,0.23399205]
[1736871449676,0.02745677,3194.8,3194.1,0.23399205]
[1736871449877,0.7547,3194.9,3194.1,0.23399205]
[1736871449878,0.7547,3194.9,3194.1,4.2146316]
[1736871450082,0.7547,3194.9,3194.3,3.13055]
[1736871450480,0.7547,3194.9,3194.2,3.36463205]
[1736871450930,3.13008,3194.8,3194.2,0.23399205]
[1736871451294,3.13008,3194.8,3194.3,0.23399205]
[1736871451523,0.7547,3194.9,3194.3,0.23399205]
[1736871451734,0.7547,3194.9,3194.6,3.13025]
[1736871451886,0.7547,3194.9,3194.5,3.0]
[1736871452421,0.7547,3194.9,3194.3,0.23399205]
[1736871452627,3.88471,3194.9,3194.3,0.23399205]
[1736871452798,0.7547,3194.9,3194.6,0.23399205]
[1736871453333,0.1675531,3195.1,3194.8,7.11071955]
[1736871453499,0.1675531,3195.1,3194.8,3.28194586]
[1736871453981,0.1675531,3195.1,3194.6,0.23399205]
[1736871454509,0.1675531,3195.1,3194.9,0.23399205]
[1736871454901,0.1675531,3195.1,3195.0,3.12989]
[1736871455299,0.1675531,3195.1,3195.0,6.36388205]
[1736871455999,0.1675531,3195.1,3195.0,3.23399205]
[1736871456200,0.9484531,3195.1,3195.0,0.23399205]
[1736871457179,0.9484531,3195.1,3195.0,0.29270682]
[1736871457180,0.1675531,3195.1,3195.0,0.29270682]
[1736871457385,0.1675531,3195.1,3195.0,6.42259682]
[1736871457590,0.1675531,3195.1,3195.0,3.29270682]
[1736871458527,0.1675531,3195.1,3195.0,6.42259682]
[1736871459099,0.1675531,3195.1,3195.0,6.65658887]
[1736871459807,0.1675531,3195.1,3195.0,6.36388205]
[1736871460025,0.1675531,3195.1,3195.0,6.65657644]
[1736871461007,0.1675531,3195.1,3195.0,0.52668644]
[1736871462124,3.13062,3194.3,3193.5,1.58014006]
[1736871462325,0.7809,3194.1,3193.5,1.58014006]
[1736871462497,0.7809,3194.1,3193.5,4.58014006]
[1736871462837,0.7809,3194.1,3193.5,0.87780685]
[1736871463134,0.7809,3194.1,3193.5,3.0]
[1736871463337,0.7809,3194.5,3193.8,3.13106]
[1736871463511,0.7809,3194.5,3193.8,3.0]
[1736871463917,0.7809,3194.5,3194.0,6.41280586]
[1736871464251,0.7809,3195.0,3194.2,3.13059]
[1736871464542,0.7809,3195.0,3194.2,3.1306]
[1736871464843,1.18872631,3195.0,3194.3,3.13055]
[1736871465057,0.7809,3195.0,3194.4,3.0]
[1736871465256,0.7809,3195.0,3194.5,3.13036]
[1736871465810,0.1675531,3195.1,3194.4,3.0]
[1736871466014,0.1675531,3195.1,3194.6,3.28194586]
[1736871466256,0.1675531,3195.1,3194.7,3.13011]
[1736871466421,0.1675531,3195.1,3194.6,6.41217586]
[1736871466956,0.1675531,3195.1,3194.6,3.28194586]
[1736871467135,0.1675531,3195.1,3194.7,3.13013]
[1736871467758,0.1675531,3195.1,3194.1,3.13075]
[1736871467934,0.1675531,3195.1,3194.2,3.1306]
[1736871468452,0.1675531,3195.1,3194.3,3.13056]
[1736871468691,0.1675531,3195.1,3194.4,3.13046]
[1736871468855,0.1675531,3195.1,3194.2,6.13064]
[1736871469218,0.32972631,3195.0,3194.2,6.13064]
[1736871470067,0.8196,3194.9,3194.2,6.13064]
[1736871470410,3.13027,3194.7,3193.7,3.13114]
[1736871470646,0.8196,3194.5,3193.7,3.13114]
[1736871470969,0.8196,3194.5,3193.8,3.0]
[1736871471455,0.8196,3194.5,3193.7,3.0]
[1736871471657,0.8196,3194.2,3192.9,8.61491773]
[1736871471816,0.03914016,3194.1,3193.1,3.0]
[1736871472011,3.13078,3194.1,3193.1,3.0]
[1736871472212,0.8196,3194.2,3193.3,3.0]
[1736871472430,4.345301,3194.2,3193.3,3.0]
[1736871472670,3.13077,3194.1,3193.3,3.0]
[1736871474341,0.8196,3194.2,3193.3,3.0]
[1736871475141,0.8196,3194.2,3193.4,0.2926932]
[1736871475541,0.8196,3194.2,3193.4,0.52684776]
[1736871475743,0.8196,3194.2,3193.4,3.65828776]
[1736871475966,0.8196,3194.2,3193.5,6.41328586]
[1736871476260,0.8196,3194.2,3193.5,4.32553906]
[1736871476561,3.13018,3194.7,3193.8,3.13103]
[1736871477158,1.4857499,3194.9,3193.6,3.0]
[1736871477159,4.6157699,3194.9,3193.9,3.4236332]
[1736871477356,0.8196,3194.9,3193.9,0.2926932]
[1736871477567,3.13019,3194.7,3193.9,0.2926932]
[1736871477778,3.13019,3194.7,3193.9,0.52684776]
[1736871478152,0.03913089,3194.6,3193.9,0.52684776]
[1736871478473,0.03913089,3194.6,3194.0,0.2926932]
[1736871478699,3.13065,3194.3,3194.0,0.2926932]
[1736871478835,3.13067,3194.2,3194.0,0.2926932]
[1736871479031,3.95015,3194.4,3194.0,0.2926932]
[1736871479445,0.03913645,3194.3,3194.0,0.2926932]
[1736871479771,3.13087,3194.0,3193.9,0.23415456]
[1736871479989,5.49397104,3194.0,3193.9,0.23415456]
[1736871480272,3.13145,3193.4,3193.3,0.52684776]
[1736871480470,3.95071,3193.8,3193.3,0.52684776]
[1736871480670,0.8196,3193.8,3193.3,0.52684776]
[1736871480974,0.8196,3193.8,3193.3,0.23415456]
[1736871481170,3.9507,3193.8,3193.3,0.23415456]
[1736871481382,4.34577,3193.8,3193.3,0.23415456]
[1736871481543,1.21467,3193.8,3193.0,0.52684776]
[1736871481743,0.8196,3193.8,3193.0,0.52684776]
[1736871481959,3.13131,3193.6,3193.0,0.52684776]
[1736871482283,0.8196,3193.8,3193.0,3.51610042]
[1736871482442,0.8255,3194.2,3193.4,3.13143]
[1736871482640,0.8255,3194.2,3193.2,3.13162]
[1736871482844,3.13108,3193.8,3193.1,0.8129]
[1736871483086,3.13108,3193.8,3193.3,0.2926932]
[1736871483249,3.95624,3194.2,3193.3,0.2926932]
[1736871483460,3.13098,3193.9,3193.3,0.2926932]
[1736871483814,3.13106,3193.8,3193.3,0.2926932]
[1736871484020,0.395624,3194.1,3193.3,0.2926932]
[1736871484021,0.8255,3193.9,3193.3,0.2926932]
[1736871484312,0.8255,3193.7,3193.0,0.52684776]
[1736871484501,3.95671,3193.7,3193.0,0.52684776]
[1736871485022,3.95671,3193.7,3193.0,0.23415456]
[1736871485172,0.8255,3194.1,3193.1,0.8129]
[1736871485377,0.8255,3194.1,3193.3,3.28194586]
[1736871485600,0.8255,3194.5,3193.4,3.0]
[1736871485805,0.8255,3194.5,3193.8,3.13106]
[1736871486712,0.8255,3194.5,3193.6,3.28194586]
[1736871487106,0.8255,3194.5,3193.7,3.13116]
[1736871487427,0.8255,3194.9,3194.4,3.28194586]
[1736871487719,0.8255,3194.9,3194.3,3.1305]
[1736871488122,0.1675531,3195.1,3194.7,3.13015]
[1736871488281,0.1675531,3195.1,3194.7,6.41209586]
[1736871488626,0.1675531,3195.1,3194.5,6.13033]
[1736871489415,0.1675531,3195.1,3194.7,3.13018]
[1736871490414,0.1675531,3195.1,3194.6,0.52594842]
[1736871490717,0.1675531,3195.1,3194.6,0.23372597]
[1736871490875,0.1675531,3195.1,3194.8,0.8129]
[1736871491794,0.1675531,3195.1,3194.8,1.10513185]
[1736871492216,0.1675531,3195.1,3194.9,3.12996]
[1736871492572,0.1675531,3195.1,3194.8,1.10513185]
[1736871492776,0.1675531,3195.1,3194.8,1.33885782]
[1736871493415,0.1675531,3195.1,3194.8,0.52595782]
[1736871493792,0.1675531,3195.1,3194.8,0.29223185]
[1736871493989,0.8255,3195.0,3194.8,0.29223185]
[1736871494207,0.8255,3195.0,3194.6,0.29223185]
[1736871494729,3.95568,3194.7,3194.6,0.29223185]
[1736871494876,7.78762586,3194.7,3194.6,0.29223185]
[1736871495090,4.50568,3194.7,3194.6,0.29223185]
[1736871495518,3.13041,3194.5,3194.3,0.23370206]
[1736871495718,3.98790604,3194.4,3194.3,0.23370206]
[1736871495998,3.94877,3194.4,3194.3,0.23370206]
[1736871496447,3.94877,3194.4,3193.4,3.42367185]
[1736871496448,3.13081,3194.1,3193.4,0.29223185]
[1736871496607,3.13116,3193.7,3193.4,0.29223185]
[1736871496932,3.13074,3194.2,3193.4,0.29223185]
[1736871496933,3.94966,3193.5,3193.4,0.29223185]
[1736871497533,3.98880855,3193.5,3193.4,0.29223185]
[1736871497691,0.55,3193.4,3192.6,0.23385475]
[1736871497896,3.13189,3193.0,3192.6,0.23385475]
[1736871498090,0.313189,3193.0,3192.6,0.23385475]
[1736871498318,4.79965374,3193.5,3192.6,0.23385475]
[1736871498319,3.1318,3193.1,3192.6,0.23385475]
[1736871498737,3.1318,3193.1,3192.5,0.29223185]
[1736871499034,3.94975,3193.5,3192.5,0.29223185]
[1736871499237,3.94975,3193.5,3192.3,3.0]
[1736871499238,3.13156,3193.3,3192.3,3.29223185]
[1736871499399,3.13156,3193.3,3192.4,3.13242]
[1736871499599,3.13156,3193.3,3192.3,3.29223185]
[1736871499794,3.13184,3193.1,3192.3,0.29223185]
[1736871500331,3.13184,3193.1,3192.3,3.29223185]
[1736871500637,3.17099259,3193.1,3192.3,0.29223185]
[1736871500788,3.13184,3193.1,3192.3,0.29223185]
[1736871500993,0.394986,3193.3,3192.3,0.29223185]
[1736871501738,3.13193,3193.0,3192.3,0.29223185]
[1736871501942,3.13165,3193.3,3192.3,0.29223185]
[1736871502108,3.13163,3193.3,3192.3,0.29223185]
[1736871502295,3.13163,3193.3,3192.3,0.52580763]
[1736871502642,3.1317,3193.2,3192.3,0.52580763]
[1736871502842,0.31317,3193.1,3192.3,0.23357578]
[1736871503049,3.13175,3193.1,3192.3,0.23357578]
[1736871503347,3.13156,3193.3,3192.3,0.23357578]
[1736871503843,3.13168,3193.2,3192.3,0.23357578]
[1736871504200,0.8183,3192.9,3192.3,0.23357578]
[1736871504401,0.85745492,3192.9,3192.3,0.23357578]
[1736871504628,0.43809241,3192.8,3192.3,0.23357578]
[1736871504819,3.13223,3192.7,3192.3,0.23357578]
[1736871505334,0.43809241,3192.8,3192.1,0.2918035]
[1736871505335,3.13233,3192.6,3192.1,0.2918035]
[1736871505610,0.55,3192.5,3191.4,0.8031]
[1736871505836,0.0391629,3192.4,3191.4,0.8031]
[1736871506157,3.1716229,3192.4,3191.5,3.0]
[1736871506305,0.37216229,3192.3,3191.4,0.8031]
[1736871506514,0.0391629,3192.4,3191.4,0.8031]
[1736871506803,3.33919,3192.7,3191.4,0.8031]
[1736871506804,3.13218,3192.7,3191.5,3.0]
[1736871507003,0.39893749,3192.8,3191.5,3.0]
[1736871507232,0.0391595,3192.8,3191.5,3.0]
[1736871507417,3.13226,3192.6,3191.5,3.13328]
[1736871507644,3.13226,3192.6,3191.6,3.13317]
[1736871507819,3.13226,3192.6,3191.4,0.8031]
[1736871507820,3.13255,3192.3,3191.4,0.8031]
[1736871508022,0.03916291,3192.2,3191.4,0.8031]
[1736871508228,0.55,3192.7,3191.0,1.07702321]
[1736871508229,0.7576,3192.1,3191.0,1.07702321]
[1736871508423,0.7576,3192.1,3191.2,3.0]
[1736871508628,0.7576,3192.5,3191.2,3.0]
[1736871508874,0.7576,3192.5,3191.3,3.0]
[1736871509152,0.7576,3192.5,3191.2,3.13359]
[1736871509153,0.58916192,3192.4,3191.2,3.13359]
[1736871509356,3.13264,3192.2,3191.2,3.13359]
[1736871509656,3.68247,3192.4,3191.4,3.13339]
[1736871509973,3.576577,3192.3,3191.3,3.13351]
[1736871510313,3.13265,3192.2,3191.1,3.13367]
[1736871510510,0.55,3192.0,3191.0,0.7855]
[1736871510838,3.89071,3191.8,3191.0,0.7855]
[1736871511044,3.13325,3191.6,3190.7,3.91956]
[1736871511359,7.11496374,3191.2,3190.5,0.32593043]
[1736871511658,3.1342,3190.6,3190.5,0.32593043]
[1736871511861,3.6842,3190.6,3190.5,0.32593043]
[1736871512042,3.13456,3190.3,3189.8,0.29114243]
[1736871512228,3.89216,3190.3,3189.8,0.29114243]
[1736871512428,3.13475,3190.1,3189.8,0.29114243]
[1736871512759,3.13473,3190.1,3189.8,0.29114243]
[1736871512921,0.389216,3190.2,3189.8,0.29114243]
[1736871513123,0.389216,3190.2,3189.7,0.32598487]
[1736871513124,0.55,3190.1,3189.7,0.32598487]
[1736871513458,4.44259,3189.8,3189.7,0.32598487]
[1736871513830,4.44259,3189.8,3188.8,3.5237027]
[1736871514149,4.44259,3189.8,3188.8,3.6596627]
[1736871514842,4.44259,3189.8,3188.8,3.36852027]
[1736871515043,1.22657825,3189.8,3188.9,3.13583]
[1736871515241,1.22657825,3189.8,3188.8,3.0]
[1736871515458,3.13533,3189.5,3188.7,0.32576142]
[1736871515630,3.17463978,3189.4,3188.7,0.32576142]
[1736871515959,3.17463978,3189.4,3188.3,3.13642]
[1736871516164,3.17463978,3189.4,3188.4,3.13627]
[1736871516518,0.03919978,3189.4,3188.6,3.0]
[1736871516857,0.37246398,3189.4,3188.6,3.0]
[1736871517056,0.03919978,3189.5,3188.4,3.0]
[1736871517241,0.55,3189.6,3188.4,3.0]
[1736871517425,0.55,3189.2,3188.0,1.1113343]
[1736871517644,0.55,3189.2,3188.5,3.13623]
[1736871517645,0.7576,3189.0,3188.5,3.13623]
[1736871517831,0.7576,3189.4,3188.4,3.0]
[1736871518347,0.7576,3189.4,3188.7,3.13607]
[1736871518707,0.7576,3189.4,3188.0,5.09268804]
[1736871518912,1.21071193,3189.4,3188.5,3.0]
[1736871519242,1.17151179,3189.4,3188.5,3.0]
[1736871519444,3.1355,3189.3,3188.2,3.13652]
[1736871519623,3.1355,3189.3,3188.0,4.2480543]
[1736871519624,3.13559,3189.2,3188.0,3.7855]
[1736871519822,0.03920073,3189.1,3188.1,0.3258527]
[1736871520152,3.17491073,3189.1,3188.1,0.3258527]
[1736871520451,3.17491073,3189.1,3188.0,3.92218]
[1736871520752,0.55,3188.8,3187.6,0.7855]
[1736871520921,0.55,3189.0,3187.2,0.32588317]
[1736871520922,0.7576,3188.2,3187.2,0.32588317]
[1736871521123,3.13734,3187.5,3187.2,0.32588317]
[1736871521321,0.03921769,3187.4,3187.2,0.32588317]